fUSD/lending_fUSD_20240425
["ID","MTS","AMOUNT","RATE_DAILY","PERIOD"]
[323541958,1714079463462,-500.0,0.00011506,2]
[323541959,1714079463471,-500.0,0.00011506,2]
[323541960,1714079463481,-2142.96,0.00011506,2]
[323541961,1714079463490,-1364.4,0.00011506,2]
[323541962,1714079463499,-500.0,0.00011506,2]
[323541963,1714079463509,-500.0,0.00011506,2]
[323541964,1714079463518,-500.0,0.00011506,2]
[323541965,1714079463527,-1778.83,0.00011506,2]
[323541966,1714079463536,-500.0,0.00011506,2]
[323541967,1714079463545,-2501.91,0.00011506,2]
[323541968,1714079463554,-545.52493379,0.00011506,2]
[323541969,1714079463563,-500.0,0.00011506,2]
[323541970,1714079463573,-500.0,0.00011506,2]
[323541971,1714079463584,-1359.49,0.00011506,2]
[323541972,1714079463593,-500.0,0.00011506,2]
[323541973,1714079463602,-2433.13,0.00011506,2]
[323541974,1714079463611,-2333.65,0.00011506,2]
[323541975,1714079463620,-500.0,0.00011506,2]
[323541976,1714079463629,-500.0,0.00011506,2]
[323541977,1714079463637,-500.0,0.00011506,2]
[323541978,1714079463647,-500.0,0.00011506,2]
[323541979,1714079463657,-500.0,0.00011506,2]
[323541980,1714079463666,-610.9341852,0.00011506,2]
[323541981,1714079463675,-770.51,0.00011506,2]
[323541982,1714079463684,-500.0,0.00011506,2]
[323541983,1714079463693,-500.0,0.00011506,2]
[323541984,1714079463703,-3058.28,0.00011506,2]
[323541985,1714079463711,-711.73,0.00011506,2]
[323541986,1714079463720,-500.0,0.00011506,2]
[323541987,1714079463730,-500.0,0.00011506,2]
[323541988,1714079463739,-500.0,0.00011506,2]
[323541989,1714079463747,-500.0,0.00011506,2]
[323541990,1714079463756,-500.0,0.00011506,2]
[323541991,1714079463766,-1470.78,0.00011506,2]
[323541992,1714079463775,-1883.18,0.00011506,2]
[323541993,1714079463784,-500.0,0.00011506,2]
[323541994,1714079463793,-500.0,0.00011506,2]
[323541995,1714079463802,-500.0,0.00011506,2]
[323541996,1714079463947,-500.0,0.00011506,2]
[323541997,1714079463957,-500.0,0.00011506,2]
[323541998,1714079463966,-500.0,0.00011506,2]
[323541999,1714079463976,-500.0,0.00011506,2]
[323542000,1714079463985,-500.0,0.00011506,2]
[323542001,1714079463994,-500.0,0.00011506,2]
[323542002,1714079464004,-784.75,0.00011506,2]
[323542003,1714079464013,-500.0,0.00011506,2]
[323542004,1714079464022,-883.8,0.00011506,2]
[323542005,1714079464031,-892.7,0.00011506,2]
[323542006,1714079464040,-500.0,0.00011506,2]
[323542007,1714079464049,-500.0,0.00011506,2]
[323542008,1714079464059,-500.0,0.00011506,2]
[323542009,1714079464068,-24239.67,0.00011506,2]
[323542010,1714079464080,-640.12127565,0.00011506,2]
[323542011,1714079464089,-365.19834996,0.00011506,2]
[323542012,1714079464098,-1331.03,0.00011506,2]
[323542013,1714079464107,-500.0,0.00011506,2]
[323542014,1714079464116,-500.0,0.00011506,2]
[323542015,1714079464125,-500.0,0.00011506,2]
[323542016,1714079464134,-1182.4,0.00011506,2]
[323542017,1714079464147,-500.0,0.00011506,2]
[323542018,1714079464156,-1060.67,0.00011506,2]
[323542019,1714079464168,-500.0,0.00011506,2]
[323542020,1714079464178,-1621.03,0.00011506,2]
[323542021,1714079464187,-2281.43,0.00011506,2]
[323542022,1714079464196,-500.0,0.00011506,2]
[323542023,1714079464206,-1355.33,0.00011506,2]
[323542024,1714079464216,-500.0,0.00011506,2]
[323542025,1714079464225,-459.30115,0.00011506,2]
[323542026,1714079464234,-500.0,0.00011506,2]
[323542027,1714079464243,-791.36,0.00011506,2]
[323542028,1714079464252,-1099.83,0.00011506,2]
[323542029,1714079464261,-500.0,0.00011506,2]
[323542030,1714079464270,-500.0,0.00011506,2]
[323542031,1714079464280,-500.0,0.00011506,2]
[323542032,1714079464289,-3049.32,0.00011506,2]
[323542033,1714079464299,-1498.73,0.00011506,2]
[323542034,1714079464309,-459.30115,0.00011506,2]
[323542035,1714079464318,-500.0,0.00011506,2]
[323542036,1714079464331,-500.0,0.00011506,2]
[323542037,1714079464340,-500.0,0.00011506,2]
[323542038,1714079464349,-500.0,0.00011506,2]
[323542039,1714079464358,-2357.14,0.00011506,2]
[323542040,1714079464367,-833.9,0.00011506,2]
[323542041,1714079464376,-500.0,0.00011506,2]
[323542042,1714079464386,-500.0,0.00011506,2]
[323542043,1714079464395,-611.59471686,0.00011506,2]
[323542044,1714079464404,-852.88,0.00011506,2]
[323542045,1714079464415,-500.0,0.00011506,2]
[323542046,1714079464425,-500.0,0.00011506,2]
[323542047,1714079464434,-500.0,0.00011506,2]
[323542048,1714079464443,-1372.85,0.00011506,2]
[323542049,1714079464452,-500.0,0.00011506,2]
[323542050,1714079464461,-640.73,0.00011506,2]
[323542051,1714079464470,-540.63650867,0.00011506,2]
[323542052,1714079464479,-500.0,0.00011506,2]
[323542053,1714079464488,-972.48,0.00011506,2]
[323542054,1714079464497,-759.26,0.00011506,2]
[323542055,1714079464506,-500.0,0.00011506,2]
[323542056,1714079464514,-539.9854484,0.00011506,2]
[323542057,1714079464523,-500.0,0.00011506,2]
[323542058,1714079464533,-984.82,0.00011506,2]
[323542059,1714079464542,-2723.41,0.00011506,2]
[323542060,1714079464553,-500.0,0.00011506,2]
[323542061,1714079464563,-5700.22,0.00011506,2]
[323542062,1714079464573,-500.0,0.00011506,2]
[323542063,1714079464585,-1003.68,0.00011506,2]
[323542064,1714079464595,-1144.78,0.00011506,2]
[323542065,1714079464604,-1711.68,0.00011506,2]
[323542066,1714079464613,-500.0,0.00011506,2]
[323542067,1714079464623,-500.0,0.00011506,2]
[323542068,1714079464632,-500.0,0.00011506,2]
[323542069,1714079464641,-500.0,0.00011506,2]
[323542070,1714079464653,-3553.91,0.00011506,2]
[323542071,1714079464663,-841.83,0.00011506,2]
[323542072,1714079464674,-338.82634515,0.00011506,2]
[323542073,1714079464683,-1532.05,0.00011506,2]
[323542074,1714079464693,-500.0,0.00011506,2]
[323542075,1714079464704,-500.0,0.00011506,2]
[323542076,1714079464713,-4466.15,0.00011506,2]
[323542077,1714079464723,-4094.61,0.00011506,2]
[323542078,1714079464732,-6226.21,0.00011506,2]
[323542079,1714079464742,-941.66,0.00011506,2]
[323542080,1714079464754,-500.0,0.00011506,2]
[323542081,1714079464764,-258.4555924,0.00011506,2]
[323542082,1714079464773,-500.0,0.00011506,2]
[323542083,1714079464782,-723.29,0.00011506,2]
[323542084,1714079464791,-500.0,0.00011506,2]
[323542085,1714079464800,-500.0,0.00011506,2]
[323542086,1714079464809,-500.0,0.00011506,2]
[323542087,1714079464820,-500.0,0.00011506,2]
[323542088,1714079464832,-500.0,0.00011506,2]
[323542089,1714079464841,-931.65,0.00011506,2]
[323542090,1714079464850,-1405.65,0.00011506,2]
[323542091,1714079464859,-1351.72,0.00011506,2]
[323542092,1714079464869,-585.14,0.00011506,2]
[323542093,1714079464878,-500.0,0.00011506,2]
[323542094,1714079464888,-500.0,0.00011506,2]
[323542095,1714079464898,-528.9,0.00011506,2]
[323542096,1714079464907,-4293.85,0.00011506,2]
[323542097,1714079464916,-1262.4,0.00011506,2]
[323542098,1714079464926,-1364.78,0.00011506,2]
[323542099,1714079464935,-1255.4,0.00011506,2]
[323542100,1714079464945,-500.0,0.00011506,2]
[323542101,1714079464954,-4221.53,0.00011506,2]
[323542102,1714079464963,-1030.13,0.00011506,2]
[323542103,1714079464972,-1373.97,0.00011506,2]
[323542104,1714079464981,-482.79598071,0.00011506,2]
[323542105,1714079464990,-770.54,0.00011506,2]
[323542106,1714079465000,-500.0,0.00011506,2]
[323542107,1714079465009,-500.0,0.00011506,2]
[323542108,1714079465018,-500.0,0.00011506,2]
[323542109,1714079465027,-580.79,0.00011506,2]
[323542110,1714079465037,-832.8,0.00011506,2]
[323542111,1714079465047,-1430.02,0.00011506,2]
[323542112,1714079465057,-500.0,0.00011506,2]
[323542113,1714079465066,-500.0,0.00011506,2]
[323542114,1714079465075,-1606.92,0.00011506,2]
[323542115,1714079465086,-500.0,0.00011506,2]
[323542116,1714079465095,-500.0,0.00011506,2]
[323542117,1714079465105,-500.0,0.00011506,2]
[323542118,1714079465114,-203.88,0.00011506,2]
[323542119,1714079465123,-500.0,0.00011506,2]
[323542120,1714079465133,-500.0,0.00011506,2]
[323542121,1714079465143,-500.0,0.00011506,2]
[323542122,1714079465154,-1426.71,0.00011506,2]
[323542123,1714079465164,-500.0,0.00011506,2]
[323542124,1714079465173,-850.34,0.00011506,2]
[323542125,1714079465182,-500.0,0.00011506,2]
[323542126,1714079465193,-2021.5,0.00011506,2]
[323542127,1714079465202,-500.0,0.00011506,2]
[323542128,1714079465211,-2499.55,0.00011506,2]
[323542129,1714079465220,-500.0,0.00011506,2]
[323542130,1714079465231,-2660.73,0.00011506,2]
[323542131,1714079465241,-793.34,0.00011506,2]
[323542132,1714079465250,-500.0,0.00011506,2]
[323542133,1714079465260,-500.0,0.00011506,2]
[323542134,1714079465269,-609.21,0.00011506,2]
[323542135,1714079465278,-500.0,0.00011506,2]
[323542136,1714079465288,-500.0,0.00011506,2]
[323542137,1714079465297,-678.64,0.00011506,2]
[323542138,1714079465307,-500.0,0.00011506,2]
[323542139,1714079465316,-691.29,0.00011506,2]
[323542140,1714079465325,-1077.99,0.00011506,2]
[323542141,1714079465335,-3547.14,0.00011506,2]
[323542142,1714079465344,-527.74,0.00011506,2]
[323542143,1714079465353,-1503.27,0.00011506,2]
[323542144,1714079465362,-500.0,0.00011506,2]
[323542145,1714079465372,-2953.99,0.00011506,2]
[323542146,1714079465381,-500.0,0.00011506,2]
[323542147,1714079465390,-500.0,0.00011506,2]
[323542148,1714079465399,-151.0,0.00011506,2]
[323542149,1714079465408,-151.0,0.00011506,2]
[323542150,1714079465418,-500.0,0.00011506,2]
[323542151,1714079465427,-2293.86,0.00011506,2]
[323542152,1714079465437,-4231.07,0.00011506,2]
[323542153,1714079465446,-1881.77,0.00011506,2]
[323542154,1714079465456,-745.48,0.00011506,2]
[323542155,1714079465465,-594.71,0.00011506,2]
[323542156,1714079465474,-5108.11,0.00011506,2]
[323542157,1714079465484,-500.0,0.00011506,2]
[323542158,1714079465493,-1261.69,0.00011506,2]
[323542159,1714079465502,-501.91040959,0.00011506,2]
[323542160,1714079465511,-500.0,0.00011506,2]
[323542161,1714079465520,-4174.07,0.00011506,2]
[323542162,1714079465529,-500.0,0.00011506,2]
[323542163,1714079465539,-500.0,0.00011506,2]
[323542164,1714079465548,-581.79,0.00011506,2]
[323542165,1714079465557,-500.0,0.00011506,2]
[323542166,1714079465566,-1617.84,0.00011506,2]
[323542167,1714079465576,-1135.57,0.00011506,2]
[323542168,1714079465586,-1982.29,0.00011506,2]
[323542169,1714079465596,-1332.35,0.00011506,2]
[323542170,1714079465605,-500.0,0.00011506,2]
[323542171,1714079465615,-1456.8,0.00011506,2]
[323542172,1714079465624,-1820.15,0.00011506,2]
[323542173,1714079465634,-753.84,0.00011506,2]
[323542174,1714079465643,-538.94,0.00011506,2]
[323542175,1714079465652,-500.0,0.00011506,2]
[323542176,1714079465661,-500.0,0.00011506,2]
[323542177,1714079465671,-500.0,0.00011506,2]
[323542178,1714079465681,-3053.45,0.00011506,2]
[323542179,1714079465691,-500.0,0.00011506,2]
[323542180,1714079465701,-500.0,0.00011506,2]
[323542181,1714079465710,-500.0,0.00011506,2]
[323542182,1714079465720,-166.69,0.00011506,2]
[323542183,1714079465730,-500.0,0.00011506,2]
[323542184,1714079465741,-281.72890475,0.00011506,2]
[323542185,1714079465751,-1227.0,0.00011537,2]
[323542186,1714079465896,-480.987,0.00011537,2]
[323542187,1714079465906,-669.0,0.00011537,2]
[323542188,1714079465916,-1000.0,0.000116,4]
[323542189,1714079465926,-732.70487158,0.00011659,2]
[323542190,1714079465935,-1384.51641444,0.00011675,2]
[323542191,1714079465945,-242.38602639,0.00011675,2]
[323542192,1714079465955,-208.20177784,0.00011675,2]
[323542193,1714079465965,-1295.35237242,0.00011675,2]
[323542194,1714079465975,-967.65652118,0.00011675,2]
[323542195,1714079465985,-500.0,0.00011676,2]
[323542196,1714079465994,-500.0,0.00011678,2]
[323542197,1714079466005,-500.0,0.00011678,2]
[323542198,1714079466014,-500.0,0.00011678,2]
[323542199,1714079466024,-13578.91122462,0.00011679,2]
[323542200,1714079466034,-161.61693124,0.0001168,2]
[323542201,1714079466043,-560.20245118,0.0001168,2]
[323542202,1714079466053,-199.99843923,0.0001168,2]
[323542203,1714079466062,-1000.0,0.000117,4]
[323542204,1714079466071,-273.43631284,0.00011777,2]
[323542205,1714079466080,-214.02042905,0.00011777,2]
[323542206,1714079466090,-155.0,0.00011777,2]
[323542207,1714079466099,-222.68410357,0.00011777,2]
[323542208,1714079466108,-155.59502717,0.00011777,2]
[323542209,1714079466118,-4585.9986,0.00011777,2]
[323542210,1714079466127,-304.30834737,0.00011777,2]
[323542211,1714079466136,-7750.96230258,0.00011777,2]
[323542212,1714079466148,-268.56451875,0.00011777,2]
[323542213,1714079466157,-308.20153492,0.00011777,2]
[323542214,1714079466166,-1667.16113497,0.00011777,2]
[323542215,1714079466176,-209.85536267,0.00011777,2]
[323542216,1714079466186,-410.75993095,0.00011778,2]
[323542217,1714079466195,-213.94764815,0.00011778,2]
[323542218,1714079466205,-155.5831373,0.00011778,2]
[323542219,1714079466214,-1292.5088923,0.00011778,2]
[323542220,1714079466228,-500.0,0.00011779,2]
[323542221,1714079466237,-500.0,0.00011779,2]
[323542222,1714079466247,-616.22,0.00011779,2]
[323542223,1714079466256,-1432.83,0.00011779,2]
[323542224,1714079466266,-500.0,0.00011779,2]
[323542225,1714079466275,-735.44,0.00011779,2]
[323542226,1714079466284,-500.0,0.00011779,2]
[323542227,1714079466294,-1004.16,0.00011779,2]
[323542228,1714079466303,-2322.43,0.00011779,2]
[323542229,1714079466312,-12565.18,0.00011779,2]
[323542230,1714079466321,-500.0,0.00011779,2]
[323542231,1714079466332,-500.0,0.00011779,2]
[323542232,1714079466341,-906.79,0.00011779,2]
[323542233,1714079466350,-8729.18,0.00011779,2]
[323542234,1714079466359,-500.0,0.0001178,2]
[323542235,1714079466368,-439.72981884,0.0001178,2]
[323542236,1714079466378,-500.0,0.0001178,2]
[323542237,1714079466387,-500.0,0.0001178,2]
[323542238,1714079466396,-500.0,0.0001178,2]
[323542239,1714079466405,-500.0,0.0001178,2]
[323542240,1714079466414,-396.12675401,0.0001178,2]
[323542241,1714079466423,-500.0,0.0001178,2]
[323542242,1714079466433,-1398.04,0.0001178,2]
[323542243,1714079466443,-500.0,0.0001178,2]
[323542244,1714079466452,-500.0,0.0001178,2]
[323542245,1714079466461,-500.0,0.0001178,2]
[323542246,1714079466470,-500.0,0.0001178,2]
[323542247,1714079466480,-1278.48,0.0001178,2]
[323542248,1714079466489,-761.17,0.0001178,2]
[323542249,1714079466498,-1268.92,0.0001178,2]
[323542250,1714079466507,-577.43,0.0001178,2]
[323542251,1714079466517,-1357.63,0.0001178,2]
[323542252,1714079466526,-500.0,0.0001178,2]
[323542253,1714079466535,-1410.16,0.0001178,2]
[323542254,1714079466545,-1466.15,0.0001178,2]
[323542255,1714079466554,-500.0,0.0001178,2]
[323542256,1714079466564,-290.38,0.0001178,2]
[323542257,1714079466573,-500.0,0.0001178,2]
[323542258,1714079466584,-1467.18,0.0001178,2]
[323542259,1714079466593,-1296.06,0.0001178,2]
[323542260,1714079466602,-500.0,0.0001178,2]
[323542261,1714079466613,-500.0,0.0001178,2]
[323542262,1714079466622,-500.0,0.0001178,2]
[323542263,1714079466631,-255.2327174,0.0001178,2]
[323542264,1714079466640,-500.0,0.0001178,2]
[323542265,1714079466650,-641.87,0.0001178,2]
[323542266,1714079466659,-207.2837543,0.0001178,2]
[323542267,1714079466668,-500.0,0.0001178,2]
[323542268,1714079466677,-500.0,0.0001178,2]
[323542269,1714079466687,-775.61,0.0001178,2]
[323542270,1714079466696,-500.0,0.0001178,2]
[323542271,1714079466706,-500.0,0.0001178,2]
[323542272,1714079466715,-520.16628309,0.0001178,2]
[323542273,1714079466727,-467.89078428,0.0001178,2]
[323542274,1714079466747,-500.0,0.0001178,2]
[323542275,1714079466764,-400.10854492,0.0001178,2]
[323542276,1714079466783,-500.0,0.0001178,2]
[323542277,1714079466800,-500.0,0.0001178,2]
[323542278,1714079466817,-532.05,0.0001178,2]
[323542279,1714079466837,-1373.79,0.0001178,2]
[323542280,1714079466853,-1380.23,0.0001178,2]
[323542281,1714079466874,-500.0,0.0001178,2]
[323542282,1714079466891,-719.44,0.0001178,2]
[323542283,1714079466909,-500.0,0.0001178,2]
[323542284,1714079466930,-500.0,0.0001178,2]
[323542285,1714079466945,-1256.85,0.0001178,2]
[323542286,1714079466960,-500.0,0.0001178,2]
[323542287,1714079466976,-500.0,0.0001178,2]
[323542288,1714079466991,-1715.23,0.0001178,2]
[323542289,1714079467008,-655.56,0.0001178,2]
[323542290,1714079467023,-500.0,0.0001178,2]
[323542291,1714079467039,-500.0,0.0001178,2]
[323542292,1714079467054,-664.9,0.0001178,2]
[323542293,1714079467070,-500.0,0.0001178,2]
[323542294,1714079467087,-500.0,0.0001178,2]
[323542295,1714079467103,-1485.15,0.0001178,2]
[323542296,1714079467119,-387.51381134,0.0001178,2]
[323542297,1714079467134,-500.0,0.0001178,2]
[323542298,1714079467151,-572.42,0.0001178,2]
[323542299,1714079467167,-500.0,0.0001178,2]
[323542300,1714079467181,-500.0,0.0001178,2]
[323542301,1714079467197,-906.84,0.0001178,2]
[323542302,1714079467212,-544.06,0.0001178,2]
[323542303,1714079467227,-500.0,0.0001178,2]
[323542304,1714079467242,-500.0,0.0001178,2]
[323542305,1714079467258,-500.0,0.0001178,2]
[323542306,1714079467274,-500.0,0.0001178,2]
[323542307,1714079467289,-636.92,0.0001178,2]
[323542308,1714079467304,-500.0,0.0001178,2]
[323542309,1714079467319,-500.0,0.0001178,2]
[323542310,1714079467334,-500.0,0.0001178,2]
[323542311,1714079467350,-500.0,0.0001178,2]
[323542312,1714079467364,-500.0,0.0001178,2]
[323542313,1714079467379,-500.0,0.0001178,2]
[323542314,1714079467393,-500.0,0.0001178,2]
[323542315,1714079467408,-500.0,0.0001178,2]
[323542316,1714079467423,-500.0,0.0001178,2]
[323542317,1714079467437,-500.0,0.0001178,2]
[323542318,1714079467453,-500.0,0.0001178,2]
[323542319,1714079467472,-386.49790602,0.0001178,2]
[323542320,1714079467486,-500.0,0.0001178,2]
[323542321,1714079467502,-678.55,0.0001178,2]
[323542322,1714079467516,-500.0,0.0001178,2]
[323542323,1714079467532,-500.0,0.0001178,2]
[323542324,1714079467547,-500.0,0.0001178,2]
[323542325,1714079467561,-500.0,0.0001178,2]
[323542326,1714079467576,-500.0,0.0001178,2]
[323542327,1714079467592,-515.94565761,0.0001178,2]
[323542328,1714079467607,-500.0,0.0001178,2]
[323542329,1714079467622,-500.0,0.0001178,2]
[323542330,1714079467636,-218.55,0.0001178,2]
[323542331,1714079467652,-500.0,0.0001178,2]
[323542332,1714079467667,-500.0,0.0001178,2]
[323542333,1714079467682,-320.84429768,0.0001178,2]
[323542334,1714079467697,-1317.02,0.0001178,2]
[323542335,1714079467712,-500.0,0.0001178,2]
[323542336,1714079467727,-500.0,0.0001178,2]
[323542337,1714079467742,-500.0,0.0001178,2]
[323542338,1714079467757,-500.0,0.0001178,2]
[323542339,1714079467774,-500.0,0.0001178,2]
[323542340,1714079467789,-500.0,0.0001178,2]
[323542341,1714079467804,-571.49,0.0001178,2]
[323542342,1714079467819,-500.0,0.0001178,2]
[323542343,1714079467835,-500.0,0.0001178,2]
[323542344,1714079467849,-500.0,0.0001178,2]
[323542345,1714079467865,-500.0,0.0001178,2]
[323542346,1714079467880,-507.35765897,0.0001178,2]
[323542347,1714079467894,-500.0,0.0001178,2]
[323542348,1714079467908,-500.0,0.0001178,2]
[323542349,1714079467923,-500.0,0.0001178,2]
[323542350,1714079467938,-500.0,0.0001178,2]
[323542351,1714079467954,-500.0,0.0001178,2]
[323542352,1714079467968,-500.0,0.0001178,2]
[323542353,1714079467984,-616.14,0.0001178,2]
[323542354,1714079467999,-1547.94,0.0001178,2]
[323542355,1714079468013,-500.0,0.0001178,2]
[323542356,1714079468027,-154.86,0.0001178,2]
[323542357,1714079468042,-500.0,0.0001178,2]
[323542358,1714079468057,-500.0,0.0001178,2]
[323542359,1714079468073,-500.0,0.0001178,2]
[323542360,1714079468087,-500.0,0.0001178,2]
[323542361,1714079468280,-500.0,0.0001178,2]
[323542362,1714079468298,-500.0,0.0001178,2]
[323542363,1714079468308,-581.24544385,0.0001178,2]
[323542364,1714079468318,-504.05111333,0.0001178,2]
[323542365,1714079468327,-500.0,0.0001178,2]
[323542366,1714079468337,-500.0,0.0001178,2]
[323542367,1714079468346,-513.31,0.0001178,2]
[323542368,1714079468357,-500.0,0.0001178,2]
[323542369,1714079468367,-500.0,0.0001178,2]
[323542370,1714079468377,-500.0,0.0001178,2]
[323542371,1714079468387,-500.0,0.0001178,2]
[323542372,1714079468397,-500.0,0.0001178,2]
[323542373,1714079468407,-151.131793,0.0001178,2]
[323542374,1714079468416,-1663.5,0.0001178,2]
[323542375,1714079468426,-500.0,0.0001178,2]
[323542376,1714079468435,-500.0,0.0001178,2]
[323542377,1714079468445,-500.0,0.0001178,2]
[323542378,1714079468454,-500.0,0.0001178,2]
[323542379,1714079468464,-573.57,0.0001178,2]
[323542380,1714079468473,-439.38,0.0001178,2]
[323542381,1714079468483,-500.0,0.0001178,2]
[323542382,1714079468493,-500.0,0.0001178,2]
[323542383,1714079468502,-500.0,0.0001178,2]
[323542384,1714079468514,-618.21,0.0001178,2]
[323542385,1714079468524,-500.0,0.0001178,2]
[323542386,1714079468534,-500.0,0.0001178,2]
[323542387,1714079468544,-2829.62,0.0001178,2]
[323542388,1714079468554,-500.0,0.0001178,2]
[323542389,1714079468563,-279.17073842,0.0001178,2]
[323542390,1714079468572,-744.23,0.0001178,2]
[323542391,1714079468582,-1273.87,0.0001178,2]
[323542392,1714079468591,-775.07,0.0001178,2]
[323542393,1714079468600,-500.0,0.0001178,2]
[323542394,1714079468610,-500.0,0.0001178,2]
[323542395,1714079468619,-500.0,0.0001178,2]
[323542396,1714079468629,-500.0,0.0001178,2]
[323542397,1714079468638,-500.0,0.0001178,2]
[323542398,1714079468647,-512.09,0.0001178,2]
[323542399,1714079468656,-500.0,0.0001178,2]
[323542400,1714079468665,-500.0,0.0001178,2]
[323542401,1714079468674,-500.0,0.0001178,2]
[323542402,1714079468683,-500.0,0.0001178,2]
[323542403,1714079468692,-1499.73,0.0001178,2]
[323542404,1714079468702,-500.0,0.0001178,2]
[323542405,1714079468710,-737.46,0.0001178,2]
[323542406,1714079468719,-500.0,0.0001178,2]
[323542407,1714079468729,-500.0,0.0001178,2]
[323542408,1714079468737,-500.0,0.0001178,2]
[323542409,1714079468746,-500.0,0.0001178,2]
[323542410,1714079468756,-500.0,0.0001178,2]
[323542411,1714079468766,-500.0,0.0001178,2]
[323542412,1714079468775,-500.0,0.0001178,2]
[323542413,1714079468785,-636.01,0.0001178,2]
[323542414,1714079468794,-500.0,0.0001178,2]
[323542415,1714079468803,-1519.53,0.0001178,2]
[323542416,1714079468812,-500.0,0.0001178,2]
[323542417,1714079468821,-500.0,0.0001178,2]
[323542418,1714079468832,-500.0,0.0001178,2]
[323542419,1714079468842,-500.0,0.0001178,2]
[323542420,1714079468851,-500.0,0.0001178,2]
[323542421,1714079468860,-500.0,0.0001178,2]
[323542422,1714079468869,-500.0,0.0001178,2]
[323542423,1714079468878,-725.55,0.0001178,2]
[323542424,1714079468887,-172.94322661,0.0001178,2]
[323542425,1714079468896,-500.0,0.0001178,2]
[323542426,1714079468905,-511.13,0.0001178,2]
[323542427,1714079468914,-500.0,0.0001178,2]
[323542428,1714079468923,-500.0,0.0001178,2]
[323542429,1714079468932,-787.58,0.0001178,2]
[323542430,1714079468941,-500.0,0.0001178,2]
[323542431,1714079468950,-500.0,0.0001178,2]
[323542432,1714079468959,-500.0,0.0001178,2]
[323542433,1714079468968,-527.28,0.0001178,2]
[323542434,1714079468977,-150.0,0.0001178,2]
[323542435,1714079468986,-500.0,0.0001178,2]
[323542436,1714079468995,-500.0,0.0001178,2]
[323542437,1714079469004,-500.0,0.0001178,2]
[323542438,1714079469014,-500.0,0.0001178,2]
[323542439,1714079469023,-500.0,0.0001178,2]
[323542440,1714079469032,-303.68709715,0.0001178,2]
[323542441,1714079469041,-500.0,0.0001178,2]
[323542442,1714079469051,-500.0,0.0001178,2]
[323542443,1714079469061,-377.17841465,0.0001178,2]
[323542444,1714079469070,-500.0,0.0001178,2]
[323542445,1714079469081,-500.0,0.0001178,2]
[323542446,1714079469090,-500.0,0.0001178,2]
[323542447,1714079469100,-643.58,0.0001178,2]
[323542448,1714079469109,-500.0,0.0001178,2]
[323542449,1714079469119,-500.0,0.0001178,2]
[323542450,1714079469129,-500.0,0.0001178,2]
[323542451,1714079469139,-500.0,0.0001178,2]
[323542452,1714079469152,-500.0,0.0001178,2]
[323542453,1714079469161,-532.07,0.0001178,2]
[323542454,1714079469170,-500.0,0.0001178,2]
[323542455,1714079469179,-500.0,0.0001178,2]
[323542456,1714079469189,-500.0,0.0001178,2]
[323542457,1714079469198,-500.0,0.0001178,2]